fUSD/lending_fUSD_20250115
["ID","MTS","AMOUNT","RATE_DAILY","PERIOD"]
[349034488,1736945470012,-3481.67459563,0.0002439,2]
[349034489,1736945470021,-302.0327547,0.00024392,4]
[349034490,1736945470031,-3000.0,0.000244,2]
[349034491,1736945470040,-2708.06,0.000244,7]
[349034492,1736945470051,-180.74404982,0.00024428,2]
[349034493,1736945470060,-225.81919926,0.0002448,2]
[349034494,1736945470070,-955336.0,0.0002449,2]
[349034495,1736945470080,-151.0,0.0002449,7]
[349034496,1736945470089,-151.0,0.0002449,7]
[349034497,1736945470098,-3083.89217772,0.00024492,2]
[349034498,1736945470108,-151.0,0.000245,7]
[349034499,1736945470118,-333.839585,0.000245,7]
[349034500,1736945470128,-333.839585,0.000245,7]
[349034501,1736945470137,-278.307644,0.000245,7]
[349034502,1736945470147,-151.0,0.000245,7]
[349034503,1736945470156,-151.0,0.000245,7]
[349034504,1736945470166,-151.0,0.000245,7]
[349034505,1736945470176,-151.0,0.000245,7]
[349034506,1736945470185,-500.0,0.00024502,2]
[349034507,1736945470194,-731.57,0.0002453,2]
[349034508,1736945470204,-500.0,0.00024552,2]
[349034509,1736945470214,-500.0,0.00024552,2]
[349034510,1736945470224,-658.67,0.00024552,2]
[349034511,1736945470234,-850.18,0.00024552,2]
[349034512,1736945470243,-763.0,0.00024552,2]
[349034513,1736945470252,-500.0,0.00024552,2]
[349034514,1736945470262,-1676.5,0.00024553,2]
[349034515,1736945470272,-2765.65897392,0.0002456,2]
[349034516,1736945470281,-400.0,0.0002457,2]
[349034517,1736945470290,-1000.0,0.0002457,2]
[349034518,1736945470299,-152.0,0.00024573,4]
[349034519,1736945470308,-3000.0,0.00024597,2]
[349034520,1736945470318,-1000.0,0.00024626,9]
[349034521,1736945470328,-1000.0,0.00024626,9]
[349034522,1736945470337,-1000.0,0.00024626,9]
[349034523,1736945470346,-1000.0,0.00024626,9]
[349034524,1736945470360,-1000.0,0.00024626,9]
[349034525,1736945470369,-1000.0,0.00024626,9]
[349034526,1736945470378,-1000.0,0.00024626,9]
[349034527,1736945470387,-1000.0,0.00024626,9]
[349034528,1736945470396,-1000.0,0.00024626,9]
[349034529,1736945470406,-1000.0,0.00024626,9]
[349034530,1736945470415,-1000.0,0.00024658,2]
[349034531,1736945470424,-2000.0,0.00024676,2]
[349034532,1736945470437,-1000.0,0.00024676,2]
[349034533,1736945470448,-1000.0,0.00024676,2]
[349034534,1736945470457,-1000.0,0.00024676,2]
[349034535,1736945470466,-1000.0,0.00024676,2]
[349034536,1736945470476,-1000.0,0.00024676,2]
[349034537,1736945470485,-1000.0,0.00024676,2]
[349034538,1736945470494,-1129.4016,0.00024676,2]
[349034539,1736945470504,-1200.0,0.000247,2]
[349034540,1736945470513,-508.0,0.000247,2]
[349034541,1736945470522,-150.0,0.0002473,2]
[349034542,1736945470532,-400.0,0.0002477,2]
[349034543,1736945470541,-1000.0,0.0002477,2]
[349034544,1736945470550,-149798.64055668,0.0002479,2]
[349034545,1736945470559,-528.01,0.00024799,2]
[349034546,1736945470569,-506.01,0.00024799,2]
[349034547,1736945470578,-1098.17750261,0.000248,120]
[349034548,1736945470587,-1058.0,0.000248,2]
[349034549,1736945470597,-308.81,0.000248,31]
[349034550,1736945470608,-308.81,0.000248,31]
[349034551,1736945470619,-308.81,0.000248,31]
[349034552,1736945470630,-308.81,0.000248,31]
[349034553,1736945470640,-308.81,0.000248,31]
[349034554,1736945470650,-308.81,0.000248,31]
[349034555,1736945470659,-308.81,0.000248,31]
[349034556,1736945470669,-308.81,0.000248,31]
[349034557,1736945470678,-308.81,0.000248,31]
[349034558,1736945470687,-308.81,0.000248,31]
[349034559,1736945470696,-308.81,0.000248,31]
[349034560,1736945470705,-308.81,0.000248,31]
[349034561,1736945470714,-308.81,0.000248,31]
[349034562,1736945470723,-308.81,0.000248,31]
[349034563,1736945470732,-308.81,0.000248,31]
[349034564,1736945470742,-308.81,0.000248,31]
[349034565,1736945470751,-308.81,0.000248,31]
[349034566,1736945470760,-308.81,0.000248,31]
[349034567,1736945470770,-308.81,0.000248,31]
[349034568,1736945470779,-308.81,0.000248,31]
[349034569,1736945470788,-308.81,0.000248,31]
[349034570,1736945470797,-308.81,0.000248,31]
[349034571,1736945470806,-308.81,0.000248,31]
[349034572,1736945470817,-308.81,0.000248,31]
[349034573,1736945470827,-5500.0,0.000248,9]
[349034574,1736945470839,-159.0,0.000248,11]
[349034575,1736945470849,-500.8687,0.000248,2]
[349034576,1736945470860,-500.8687,0.000248,2]
[349034577,1736945470869,-2110.0,0.000248,2]
[349034578,1736945470879,-365.0084,0.000248,2]
[349034579,1736945470887,-365.0084,0.000248,2]
[349034580,1736945470896,-731.57,0.00024804,2]
[349034581,1736945470906,-211.92,0.00024826,2]
[349034582,1736945470916,-500.0,0.00024826,2]
[349034583,1736945470926,-658.67,0.00024826,2]
[349034584,1736945470935,-850.18,0.00024826,2]
[349034585,1736945470945,-763.0,0.00024826,2]
[349034586,1736945470954,-500.0,0.00024826,2]
[349034587,1736945470963,-1676.5,0.00024827,2]
[349034588,1736945470972,-2625.20928202,0.00024833,10]
[349034589,1736945470982,-1270.55910387,0.00024866,2]
[349034590,1736945470991,-1000.0,0.00024868,30]
[349034591,1736945471000,-1172.87258346,0.0002489,2]
[349034592,1736945471009,-3000.57134703,0.0002489,14]
[349034593,1736945471018,-528.01,0.00024899,2]
[349034594,1736945471027,-528.01,0.00024899,2]
[349034595,1736945471037,-528.01,0.00024899,2]
[349034596,1736945471047,-506.01,0.00024899,2]
[349034597,1736945471057,-506.01,0.00024899,2]
[349034598,1736945471067,-506.01,0.00024899,2]
[349034599,1736945471076,-999.0,0.00024899,2]
[349034600,1736945471086,-269.51993854,0.000249,2]
[349034601,1736945471096,-1100.0,0.000249,9]
[349034602,1736945471105,-1000.0,0.00024953,30]
[349034603,1736945471115,-6687.53025752,0.0002496,60]
[349034604,1736945471124,-60290.56392791,0.0002496,60]
[349034605,1736945471133,-415.0,0.0002496,120]
[349034606,1736945471142,-150.5,0.0002497,120]
[349034607,1736945471151,-150.5,0.0002497,120]
[349034608,1736945471161,-257.0,0.0002497,30]
[349034609,1736945471170,-415.0,0.0002497,120]
[349034610,1736945471180,-415.0,0.0002497,120]
[349034611,1736945471189,-150.5,0.0002498,120]
[349034612,1736945471198,-150.5,0.0002498,120]
[349034613,1736945471208,-257.0,0.0002498,30]
[349034614,1736945471219,-150.5,0.0002498,120]
[349034615,1736945471229,-11164.797022,0.0002498,30]
[349034616,1736945471239,-415.0,0.0002498,120]
[349034617,1736945471248,-27446.61353974,0.0002498,5]
[349034618,1736945471258,-415.0,0.0002498,120]
[349034619,1736945471267,-15586.0,0.00024986,2]
[349034620,1736945471276,-150.5,0.0002499,120]
[349034621,1736945471286,-150.5,0.0002499,120]
[349034622,1736945471295,-257.0,0.0002499,30]
[349034623,1736945471305,-150.5,0.0002499,120]
[349034624,1736945471314,-415.0,0.0002499,120]
[349034625,1736945471325,-161.79,0.0002499,120]
[349034626,1736945471335,-225.81919926,0.0002499,2]
[349034627,1736945471345,-672.44042542,0.00024999,2]
[349034628,1736945471356,-528.01,0.00024999,2]
[349034629,1736945471367,-528.01,0.00024999,2]
[349034630,1736945471376,-506.01,0.00024999,2]
[349034631,1736945471386,-506.01,0.00024999,2]
[349034632,1736945471395,-506.01,0.00024999,2]
[349034633,1736945471404,-120631.33596937,0.00025,2]
[349034634,1736945471415,-583.58899057,0.00025,2]
[349034635,1736945471427,-1590.94628985,0.00025,2]
[349034636,1736945471438,-254.34625969,0.00025,2]
[349034637,1736945471448,-2908.2879283,0.00025,2]
[349034638,1736945471458,-198.23788056,0.00025,2]
[349034639,1736945471467,-150.0,0.00025,2]
[349034640,1736945471476,-1800.0,0.00025,26]
[349034641,1736945471486,-900.0,0.00025,15]
[349034642,1736945471495,-1500.0,0.00025,12]
[349034643,1736945471503,-500.0,0.00025,3]
[349034644,1736945471513,-500.0,0.00025,120]
[349034645,1736945471522,-647.35492254,0.00025,120]
[349034646,1736945471531,-200.0,0.00025,120]
[349034647,1736945471540,-138654.43134824,0.00025,14]
[349034648,1736945471549,-5000.0,0.00025,120]
[349034649,1736945471558,-1000.0,0.00025,10]
[349034650,1736945471567,-1000.0,0.00025,10]
[349034651,1736945471576,-1000.0,0.00025,10]
[349034652,1736945471585,-1000.0,0.00025,10]
[349034653,1736945471594,-1000.0,0.00025,10]
[349034654,1736945471603,-1000.0,0.00025,10]
[349034655,1736945471612,-1000.0,0.00025,10]
[349034656,1736945471621,-1000.0,0.00025,10]
[349034657,1736945471630,-1000.0,0.00025,10]
[349034658,1736945471639,-1000.0,0.00025,10]
[349034659,1736945471648,-1000.0,0.00025,10]
[349034660,1736945471656,-1000.0,0.00025,10]
[349034661,1736945471665,-1000.0,0.00025,10]
[349034662,1736945471674,-1000.0,0.00025,10]
[349034663,1736945471683,-1000.0,0.00025,10]
[349034664,1736945471692,-1000.0,0.00025,10]
[349034665,1736945471701,-1000.0,0.00025,10]
[349034666,1736945471710,-1000.0,0.00025,10]
[349034667,1736945471719,-1000.0,0.00025,10]
[349034668,1736945471728,-1000.0,0.00025,10]
[349034669,1736945471739,-1000.0,0.00025,10]
[349034670,1736945471748,-1000.0,0.00025,10]
[349034671,1736945471758,-1000.0,0.00025,10]
[349034672,1736945471767,-1000.0,0.00025,10]
[349034673,1736945471775,-1000.0,0.00025,10]
[349034674,1736945471784,-1000.0,0.00025,10]
[349034675,1736945471793,-1000.0,0.00025,10]
[349034676,1736945471802,-1000.0,0.00025,10]
[349034677,1736945471811,-1000.0,0.00025,10]
[349034678,1736945471821,-1000.0,0.00025,10]
[349034679,1736945471830,-1000.0,0.00025,10]
[349034680,1736945471840,-241.46123905,0.00025,10]
[349034681,1736945471851,-1265.64651317,0.00025,120]
[349034682,1736945471861,-10112.25940718,0.00025,60]
[349034683,1736945471870,-206.45747402,0.00025,120]
[349034684,1736945471879,-1000.0,0.00025,30]
[349034685,1736945471889,-605.15210342,0.00025,120]
[349034686,1736945471900,-206.2159921,0.00025,120]
[349034687,1736945471913,-200.0,0.00025,120]
[349034688,1736945471923,-1430.09273968,0.00025,60]
[349034689,1736945471933,-2011.63642591,0.00025,120]
[349034690,1736945471942,-2898424.63705736,0.00025,120]
[349034691,1736945471954,-167.0,0.00025,2]
[349034692,1736945471963,-900.0,0.00025,2]
[349034693,1736945471973,-151.0,0.00025,7]
[349034694,1736945471982,-151.0,0.00025,7]
[349034695,1736945471991,-151.0,0.00025,7]
[349034696,1736945472136,-151.0,0.00025,7]
[349034697,1736945472146,-151.0,0.00025,7]
[349034698,1736945472156,-230.156174,0.00025,7]
[349034699,1736945472165,-576.709152,0.00025,7]
[349034700,1736945472175,-576.709152,0.00025,7]
[349034701,1736945472184,-151.0,0.00025,7]
[349034702,1736945472194,-151.0,0.00025,7]
[349034703,1736945472203,-3240.0,0.00025,7]
[349034704,1736945472213,-243.698842,0.00025,7]
[349034705,1736945472222,-333.839585,0.00025,7]
[349034706,1736945472232,-333.839585,0.00025,7]
[349034707,1736945472241,-151.0,0.00025,7]
[349034708,1736945472251,-151.0,0.00025,7]
[349034709,1736945472260,-151.0,0.00025,7]
[349034710,1736945472270,-151.0,0.00025,7]
[349034711,1736945472279,-151.0,0.00025,7]
[349034712,1736945472288,-151.0,0.00025,7]
[349034713,1736945472298,-1277.26650474,0.00025007,5]
[349034714,1736945472307,-1000.0,0.00025037,30]
[349034715,1736945472317,-731.57,0.00025078,2]
[349034716,1736945472326,-3229.90775382,0.000251,2]
[349034717,1736945472335,-258.42117696,0.000251,2]
[349034718,1736945472344,-658.70429073,0.000251,2]
[349034719,1736945472354,-850.22636132,0.000251,2]
[349034720,1736945472365,-763.18830657,0.000251,2]
[349034721,1736945472374,-500.0,0.000251,2]
[349034722,1736945472383,-1676.54393604,0.00025101,2]
[349034723,1736945472392,-1000.0,0.00025121,30]
[349034724,1736945472402,-1000.0,0.00025205,30]
[349034725,1736945472411,-150.0,0.00025234,2]
[349034726,1736945472421,-1000.0,0.0002529,30]
[349034727,1736945472431,-2000.0,0.000253,6]
[349034728,1736945472441,-2110.0,0.000253,2]
[349034729,1736945472452,-280.0,0.000253,10]
[349034730,1736945472463,-731.57,0.00025352,2]
[349034731,1736945472472,-152.93,0.00025373,2]
[349034732,1736945472481,-1000.0,0.00025374,30]
[349034733,1736945472491,-1175.26,0.000254,14]
[349034734,1736945472500,-1000.0,0.00025458,30]
[349034735,1736945472510,-2708.06,0.000255,7]
[349034736,1736945472520,-1000.0,0.00025543,30]
[349034737,1736945472531,-500.0,0.00025569,120]
[349034738,1736945472543,-731.57,0.00025626,2]
[349034739,1736945472554,-1000.0,0.00025627,30]
[349034740,1736945472564,-1000.0,0.00025711,30]
[349034741,1736945472573,-150.0,0.00025739,2]
[349034742,1736945472583,-1270.55910387,0.00025762,2]
[349034743,1736945472593,-1000.0,0.00025796,30]
[349034744,1736945472603,-2098.28,0.000258,2]
[349034745,1736945472612,-257.0,0.0002587,30]
[349034746,1736945472622,-150.5,0.0002587,120]
[349034747,1736945472631,-1000.0,0.0002588,30]
[349034748,1736945472643,-257.0,0.0002588,30]
[349034749,1736945472652,-150.5,0.0002588,120]
[349034750,1736945472661,-257.0,0.0002589,30]
[349034751,1736945472671,-150.5,0.0002589,120]
[349034752,1736945472681,-167.0,0.0002589,2]
[349034753,1736945472691,-14998.0228383,0.000259,7]
[349034754,1736945472700,-694.25,0.000259,120]
[349034755,1736945472709,-731.799,0.000259,2]
[349034756,1736945472719,-1000.0,0.00025964,30]
[349034757,1736945472728,-572.92997696,0.0002599,2]
[349034758,1736945472738,-4316.82836814,0.00026,2]
[349034759,1736945472747,-4433.65,0.00026,2]
[349034760,1736945472757,-200142.0,0.00026,7]
[349034761,1736945472767,-1800.0,0.00026,27]
[349034762,1736945472776,-1000.0,0.00026,120]
[349034763,1736945472785,-800.0,0.00026,20]
[349034764,1736945472795,-217.54461348,0.00026,120]
[349034765,1736945472804,-163.12229087,0.00026,30]
[349034766,1736945472813,-810.0,0.00026,30]
[349034767,1736945472823,-500.7,0.00026,30]
[349034768,1736945472833,-500.0,0.00026,30]
[349034769,1736945472842,-500.0,0.00026,30]
[349034770,1736945472852,-500.0,0.00026,30]
[349034771,1736945472861,-500.0,0.00026,30]
[349034772,1736945472871,-500.0,0.00026,30]
[349034773,1736945472881,-500.0,0.00026,30]
[349034774,1736945472890,-500.0,0.00026,30]
[349034775,1736945472900,-500.0,0.00026,30]
[349034776,1736945472910,-160.23119797,0.00026,30]
[349034777,1736945472920,-547.75007701,0.00026,30]
[349034778,1736945472929,-500.0,0.00026,30]
[349034779,1736945472939,-500.0,0.00026,30]
[349034780,1736945472948,-500.0,0.00026,30]
[349034781,1736945472958,-688.46321481,0.00026,30]
[349034782,1736945472967,-500.0,0.00026,30]
[349034783,1736945472977,-500.0,0.00026,30]
[349034784,1736945472986,-500.0,0.00026,30]
[349034785,1736945472996,-500.0,0.00026,30]
[349034786,1736945473005,-500.0,0.00026,30]
[349034787,1736945473015,-500.0,0.00026,30]
[349034788,1736945473024,-500.0,0.00026,30]
[349034789,1736945473033,-955.37352583,0.00026,30]
[349034790,1736945473042,-500.0,0.00026,30]
[349034791,1736945473051,-500.0,0.00026,30]
[349034792,1736945473061,-412.27567433,0.00026,30]
[349034793,1736945473070,-500.0,0.00026,30]
[349034794,1736945473079,-500.0,0.00026,30]
[349034795,1736945473089,-500.0,0.00026,30]
[349034796,1736945473098,-500.0,0.00026,30]
[349034797,1736945473107,-500.0,0.00026,30]
[349034798,1736945473116,-500.0,0.00026,30]
[349034799,1736945473125,-500.0,0.00026,30]
[349034800,1736945473135,-500.0,0.00026,30]
[349034801,1736945473144,-500.0,0.00026,30]
[349034802,1736945473153,-500.0,0.00026,30]
[349034803,1736945473163,-500.0,0.00026,30]
[349034804,1736945473172,-500.0,0.00026,30]
[349034805,1736945473182,-500.0,0.00026,30]
[349034806,1736945473191,-500.0,0.00026,30]
[349034807,1736945473200,-500.0,0.00026,30]
[349034808,1736945473209,-159.55508433,0.00026,30]
[349034809,1736945473218,-500.0,0.00026,30]
[349034810,1736945473227,-500.0,0.00026,30]
[349034811,1736945473237,-500.0,0.00026,30]
[349034812,1736945473246,-500.0,0.00026,30]
[349034813,1736945473255,-700.0,0.00026,30]
[349034814,1736945473265,-939.72003174,0.00026,30]
[349034815,1736945473274,-500.0,0.00026,30]
[349034816,1736945473283,-700.0,0.00026,30]
[349034817,1736945473292,-156.99177332,0.00026,30]
[349034818,1736945473301,-500.0,0.00026,30]
[349034819,1736945473311,-700.0,0.00026,30]
[349034820,1736945473320,-187.51199446,0.00026,30]
[349034821,1736945473329,-470.2322072,0.00026,30]
[349034822,1736945473339,-500.0,0.00026,30]
[349034823,1736945473347,-700.0,0.00026,30]
[349034824,1736945473357,-700.0,0.00026,30]
[349034825,1736945473369,-500.0,0.00026,30]
[349034826,1736945473379,-622.70095186,0.00026,30]
[349034827,1736945473388,-500.0,0.00026,30]
[349034828,1736945473398,-700.0,0.00026,30]
[349034829,1736945473408,-700.0,0.00026,30]
[349034830,1736945473418,-500.0,0.00026,30]
[349034831,1736945473428,-700.0,0.00026,30]
[349034832,1736945473439,-700.0,0.00026,30]
[349034833,1736945473448,-500.0,0.00026,30]
[349034834,1736945473458,-700.0,0.00026,30]
[349034835,1736945473468,-700.0,0.00026,30]
[349034836,1736945473477,-500.0,0.00026,30]
[349034837,1736945473487,-700.0,0.00026,30]
[349034838,1736945473496,-700.0,0.00026,30]
[349034839,1736945473506,-700.0,0.00026,30]
[349034840,1736945473515,-700.0,0.00026,30]
[349034841,1736945473525,-500.0,0.00026,30]
[349034842,1736945473537,-700.0,0.00026,30]
[349034843,1736945473548,-700.0,0.00026,30]
[349034844,1736945473558,-700.0,0.00026,30]
[349034845,1736945473568,-700.0,0.00026,30]
[349034846,1736945473578,-700.0,0.00026,30]
[349034847,1736945473587,-700.0,0.00026,30]
[349034848,1736945473596,-700.0,0.00026,30]
[349034849,1736945473605,-700.0,0.00026,30]
[349034850,1736945473614,-700.0,0.00026,30]
[349034851,1736945473624,-700.0,0.00026,30]
[349034852,1736945473635,-700.0,0.00026,30]
[349034853,1736945473645,-700.0,0.00026,30]
[349034854,1736945473655,-700.0,0.00026,30]
[349034855,1736945473665,-2000.0,0.00026,30]
[349034856,1736945473677,-500.0,0.00026,30]
[349034857,1736945473686,-500.0,0.00026,30]
[349034858,1736945473695,-500.0,0.00026,30]
[349034859,1736945473704,-2000.0,0.00026,30]
[349034860,1736945473714,-2000.0,0.00026,30]
[349034861,1736945473723,-2000.0,0.00026,30]
[349034862,1736945473732,-2000.0,0.00026,30]
[349034863,1736945473741,-2000.0,0.00026,30]
[349034864,1736945473751,-2000.0,0.00026,30]
[349034865,1736945473760,-2000.0,0.00026,30]
[349034866,1736945473768,-2000.0,0.00026,30]
[349034867,1736945473778,-500.0,0.00026,30]
[349034868,1736945473787,-500.0,0.00026,30]
[349034869,1736945473797,-2000.0,0.00026,30]
[349034870,1736945473806,-500.0,0.00026,30]
[349034871,1736945473816,-2000.0,0.00026,30]
[349034872,1736945473826,-500.0,0.00026,30]
[349034873,1736945473837,-987.05794336,0.00026,30]
[349034874,1736945473846,-1200.0,0.00026,30]
[349034875,1736945473856,-208.19888326,0.00026,30]
[349034876,1736945473865,-500.0,0.00026,30]
[349034877,1736945473875,-2000.0,0.00026,30]
[349034878,1736945473884,-500.0,0.00026,30]
[349034879,1736945473894,-1200.0,0.00026,30]
[349034880,1736945473903,-159.32724715,0.00026,30]
[349034881,1736945473913,-2000.0,0.00026,30]
[349034882,1736945473923,-500.0,0.00026,30]
[349034883,1736945473933,-297.67270142,0.00026,30]
[349034884,1736945473944,-1200.0,0.00026,30]
[349034885,1736945473954,-2000.0,0.00026,30]
[349034886,1736945473963,-500.0,0.00026,30]
[349034887,1736945473972,-1200.0,0.00026,30]
[349034888,1736945473983,-2000.0,0.00026,30]
[349034889,1736945473994,-1200.0,0.00026,30]
[349034890,1736945474004,-1200.0,0.00026,30]
[349034891,1736945474013,-1200.0,0.00026,30]
[349034892,1736945474022,-412.27567433,0.00026,30]
[349034893,1736945474031,-1200.0,0.00026,30]
[349034894,1736945474040,-1200.0,0.00026,30]
[349034895,1736945474049,-532.06956681,0.00026,30]
[349034896,1736945474058,-1200.0,0.00026,30]
[349034897,1736945474067,-1200.0,0.00026,30]
[349034898,1736945474076,-1200.0,0.00026,30]
[349034899,1736945474085,-1200.0,0.00026,30]
[349034900,1736945474093,-1200.0,0.00026,30]
[349034901,1736945474102,-500.7,0.00026,30]
[349034902,1736945474111,-470.2322072,0.00026,30]
[349034903,1736945474120,-412.27567433,0.00026,30]
[349034904,1736945474129,-470.2322072,0.00026,30]
[349034905,1736945474138,-412.27567433,0.00026,30]
[349034906,1736945474147,-470.2322072,0.00026,30]
[349034907,1736945474156,-345.07994587,0.00026,30]
[349034908,1736945474165,-255.34087378,0.00026,30]
[349034909,1736945474175,-1058.0,0.0002604,2]
[349034910,1736945474185,-1000.0,0.00026048,30]
[349034911,1736945474194,-1000.0,0.00026133,30]
[349034912,1736945474203,-1000.0,0.00026217,30]
[349034913,1736945474213,-150.0,0.00026244,2]
[349034914,1736945474223,-2000.0,0.000263,6]
[349034915,1736945474233,-1000.0,0.00026301,30]
[349034916,1736945474243,-152.0,0.00026302,5]
[349034917,1736945474252,-500.0,0.00026339,120]
[349034918,1736945474262,-1000.0,0.00026386,30]
[349034919,1736945474271,-26211.05507346,0.000264,2]
[349034920,1736945474281,-353.82,0.00026406,2]
[349034921,1736945474291,-1000.0,0.0002647,30]
[349034922,1736945474300,-1000.0,0.00026554,30]
[349034923,1736945474309,-1000.0,0.00026639,30]
[349034924,1736945474319,-1270.55910387,0.00026659,2]
[349034925,1736945474329,-250.00813,0.000267,2]
[349034926,1736945474339,-1000.0,0.00026723,30]
[349034927,1736945474348,-150.0,0.00026748,2]
[349034928,1736945474359,-1000.0,0.00026807,30]
[349034929,1736945474370,-1000.0,0.00026849,2]
[349034930,1736945474379,-150.0,0.00026861,2]
[349034931,1736945474389,-3895.0,0.00026861,2]
[349034932,1736945474398,-1000.0,0.00026891,30]
[349034933,1736945474407,-124482.4940247,0.000269,7]
[349034934,1736945474417,-64754.4931144,0.000269,7]
[349034935,1736945474426,-1000.0,0.00026976,30]
[349034936,1736945474435,-250.0,0.00027,2]
[349034937,1736945474445,-381.04745474,0.00027,2]
[349034938,1736945474454,-988.01604468,0.00027,2]
[349034939,1736945474463,-5272.85530908,0.00027,7]
[349034940,1736945474472,-1800.0,0.00027,28]
[349034941,1736945474481,-1848.43068993,0.00027,14]
[349034942,1736945474490,-500.0,0.00027,120]
[349034943,1736945474500,-852.51511769,0.00027,120]
[349034944,1736945474509,-678.67536693,0.00027,120]
[349034945,1736945474518,-2000.0,0.00027,120]
[349034946,1736945474527,-5243.08,0.00027,120]
[349034947,1736945474536,-10000.02348814,0.00027,3]
[349034948,1736945474545,-2000.0,0.00027,2]
[349034949,1736945474555,-950.0,0.00027,2]
[349034950,1736945474564,-2098.869682,0.0002701,2]
[349034951,1736945474573,-156.36,0.0002705,2]
[349034952,1736945474583,-1000.0,0.0002706,30]
[349034953,1736945474593,-1226.32886978,0.00027085,30]
[349034954,1736945474602,-999.0,0.00027091,4]
[349034955,1736945474611,-309.00026796,0.00027095,120]
[349034956,1736945474620,-3000.0,0.000271,2]
[349034957,1736945474629,-500.0,0.00027108,120]
[349034958,1736945474638,-3505.54,0.00027123,2]
[349034959,1736945474648,-1000.0,0.00027144,30]
[349034960,1736945474657,-1000.0,0.00027229,30]
[349034961,1736945474666,-150.0,0.00027253,2]
[349034962,1736945474676,-2000.0,0.000273,8]
[349034963,1736945474685,-298.56,0.000273,7]
[349034964,1736945474695,-152.06432918,0.000273,7]
[349034965,1736945474704,-152.06432918,0.000273,7]
[349034966,1736945474713,-152.06432918,0.000273,7]
[349034967,1736945474722,-152.06432918,0.000273,7]
[349034968,1736945474733,-152.06432918,0.000273,7]
[349034969,1736945474743,-152.06432918,0.000273,7]
[349034970,1736945474753,-152.06432918,0.000273,7]
[349034971,1736945474762,-152.06432918,0.000273,7]
[349034972,1736945474771,-152.06432918,0.000273,7]
[349034973,1736945474780,-152.06432918,0.000273,7]
[349034974,1736945474790,-152.06432918,0.000273,7]
[349034975,1736945474801,-152.06432918,0.000273,7]
[349034976,1736945474811,-152.06432918,0.000273,7]
[349034977,1736945474821,-152.06,0.000273,7]
[349034978,1736945474831,-1000.0,0.00027313,30]
[349034979,1736945474841,-1276.83673305,0.0002736,120]
[349034980,1736945474853,-150.0,0.00027397,2]
[349034981,1736945474864,-150.0,0.00027397,2]
[349034982,1736945474874,-150.0,0.00027397,2]
[349034983,1736945474884,-150.0,0.00027397,2]
[349034984,1736945474893,-150.0,0.00027397,2]
[349034985,1736945474903,-150.0,0.00027397,2]
[349034986,1736945474912,-150.0,0.00027397,2]
[349034987,1736945474921,-150.0,0.00027397,2]